Workbook

Sheet Sheet1
B2: A | H2: A` | N2: B | T2: C | Z2: D | AF2: BRAKES | AN2: A | AO2: A' | AP2: B | AQ2: C | AR2: D | AS2: BRAKES
B3: factory | C3: LEFT | D3: RIGHT | E3: left | F3: right | G3: symet | H3: factory | I3: LEFT | J3: RIGHT | K3: left | L3: right | M3: symet. | N3: factory | O3: LEFT | P3: RIGHT | Q3: left | R3: dir. | S3: symet | T3: factory | U3: LEFT | V3: RIGHT | W3: left | X3: dir. | Y3: symet | Z3: factory | AA3: LEFT | AB3: RIGHT | AC3: left. | AD3: right | AE3: symet | AF3: factory | AG3: LEFT | AH3: RIGHT | AI3: left. | AJ3: right | AK3: symet
A4: 1 | B4: =AN4+$M$19 -> 7523.1 | E4: =C4-B4 -> -7523.1 | F4: =D4-B4 -> -7523.1 | G4: =C4-D4 -> 0 | H4: =AO4+$M$19 -> 7483.1 | K4: =I4-H4 -> -7483.1 | L4: =J4-H4 -> -7483.1 | M4: =I4-J4 -> 0 | N4: =AP4+$M$19 -> 7384.25 | Q4: =O4-N4 -> -7384.25 | R4: =P4-N4 -> -7384.25 | S4: =O4-P4 -> 0 | T4: =AQ4+$M$19 -> 7464.65 | W4: =U4-T4 -> -7464.65 | X4: =V4-T4 -> -7464.65 | Y4: =U4-V4 -> 0 | Z4: =AR4+$M$19 -> 7567.65 | AC4: =AA4-Z4 -> -7567.65 | AD4: =AB4-Z4 -> -7567.65 | AE4: =AA4-AB4 -> 0 | AF4: 7647.2 | AI4: =AG4-AF4 -> -7647.2 | AJ4: =AH4-AF4 -> -7647.2 | AK4: =AG4-AH4 -> 0 | AN4: 7523.1 | AO4: =(((((((AVERAGE(AM4:AN4))-20)-20)-5)+30)-25)-5)+5 -> 7483.1 | AP4: 7384.25 | AQ4: 7464.65 | AR4: 7567.65 | AS4: 7677.2 | AW4: 7434.65
A5: 2 | B5: 7482.6 | E5: =C5-B5 -> -7482.6 | F5: =D5-B5 -> -7482.6 | G5: =C5-D5 -> 0 | H5: 7437.6 | K5: =I5-H5 -> -7437.6 | L5: =J5-H5 -> -7437.6 | M5: 0 | N5: 7355.5 | Q5: =O5-N5 -> -7355.5 | R5: =P5-N5 -> -7355.5 | S5: =O5-P5 -> 0 | T5: =AQ5+$M$19 -> 7428.6 | W5: =U5-T5 -> -7428.6 | X5: =V5-T5 -> -7428.6 | Y5: =U5-V5 -> 0 | Z5: =AR5+$M$19 -> 7530 | AC5: =AA5-Z5 -> -7530 | AD5: =AB5-Z5 -> -7530 | AE5: =AA5-AB5 -> 0 | AF5: 7405.25 | AI5: =AG5-AF5 -> -7405.25 | AJ5: =AH5-AF5 -> -7405.25 | AK5: =AG5-AH5 -> 0 | AN5: 7482.6 | AO5: =((((((AVERAGE(AM5:AN5))-20)-20)-5)+30)-25)-5 -> 7437.6 | AP5: 7355.5 | AQ5: 7428.6 | AR5: 7530 | AS5: 7435.25 | AW5: 7398.6
A6: 3 | B6: 7442.75 | E6: -7442.75 | F6: -7442.75 | G6: 0 | H6: 7397.75 | K6: -7397.75 | L6: -7397.75 | M6: 0 | N6: 7309.05 | Q6: -7309.05 | R6: -7309.05 | S6: 0 | T6: 7376.35 | W6: -7376.35 | X6: -7376.35 | Y6: 0 | Z6: =AR6+$M$19 -> 7476.75 | AC6: -7476.75 | AD6: -7476.75 | AE6: 0 | AF6: 7229.9 | AI6: -7229.9 | AJ6: -7229.9 | AK6: 0 | AN6: 7442.75 | AO6: =((((((AVERAGE(AM6:AN6))-20)-20)-5)+30)-25)-5 -> 7397.75 | AP6: 7309.05 | AQ6: 7376.35 | AR6: 7476.75 | AS6: 7259.9 | AW6: 7346.35
A7: 4 | B7: 7462.95 | E7: -7462.95 | F7: -7462.95 | G7: 0 | H7: 7417.95 | K7: -7417.95 | L7: -7417.95 | M7: 0 | N7: 7333.8 | Q7: -7333.8 | R7: -7333.8 | S7: 0 | T7: 7399.4 | W7: -7399.4 | X7: -7399.4 | Y7: 0 | Z7: =AR7+$M$19 -> 7488.85 | AC7: -7488.85 | AD7: -7488.85 | AE7: 0 | AF7: 7269.6 | AI7: -7269.6 | AJ7: -7269.6 | AK7: 0 | AN7: 7462.95 | AO7: =((((((AVERAGE(AM7:AN7))-20)-20)-5)+30)-25)-5 -> 7417.95 | AP7: 7333.8 | AQ7: 7399.4 | AR7: 7488.85 | AS7: 7299.6 | AW7: 7369.4
A8: 5 | B8: 7377.7 | E8: -7377.7 | F8: -7377.7 | G8: 0 | H8: 7337.7 | K8: -7337.7 | L8: -7337.7 | M8: 0 | N8: 7242.35 | Q8: -7242.35 | R8: -7242.35 | S8: 0 | T8: 7320.15 | W8: -7320.15 | X8: -7320.15 | Y8: 0 | Z8: =AR8+$M$19 -> 7417.55 | AC8: -7417.55 | AD8: -7417.55 | AE8: 0 | AF8: 7032.05 | AI8: -7032.05 | AJ8: -7032.05 | AK8: 0 | AN8: 7377.7 | AO8: =(((((AVERAGE(AM8:AN8))-20)-20)-5)+30)-25 -> 7337.7 | AP8: 7242.35 | AQ8: 7320.15 | AR8: 7417.55 | AS8: 7062.05 | AW8: 7290.15
A9: 6 | B9: 7330 | E9: -7330 | F9: -7330 | G9: 0 | H9: 7290 | K9: -7290 | L9: -7290 | M9: 0 | N9: 7196.1 | Q9: -7196.1 | R9: =P9-N9 -> -7196.1 | S9: =O9-P9 -> 0 | T9: 7275 | W9: -7275 | X9: =V9-T9 -> -7275 | Y9: =U9-V9 -> 0 | Z9: 7362.8 | AC9: -7362.8 | AD9: -7362.8 | AE9: 0 | AF9: 6906.85 | AI9: -6906.85 | AJ9: -6906.85 | AK9: 0 | AN9: 7330 | AO9: =(((((AVERAGE(AM9:AN9))-20)-20)-5)+30)-25 -> 7290 | AP9: 7196.1 | AQ9: 7275 | AR9: 7362.8 | AS9: 6936.85 | AW9: 7235
A10: 7 | B10: 7258.05 | E10: -7258.05 | F10: -7258.05 | G10: 0 | H10: 7213.05 | K10: -7213.05 | L10: -7213.05 | M10: 0 | N10: 7127.95 | Q10: -7127.95 | R10: =P10-N10 -> -7127.95 | S10: =O10-P10 -> 0 | T10: 7191.9 | W10: -7191.9 | X10: =V10-T10 -> -7191.9 | Y10: =U10-V10 -> 0 | Z10: 7278.05 | AC10: -7278.05 | AD10: -7278.05 | AE10: 0 | AF10: 6814.95 | AI10: -6814.95 | AJ10: -6814.95 | AK10: 0 | AN10: 7258.05 | AO10: =((((((AVERAGE(AM10:AN10))-20)-20)-5)+30)-25)-5 -> 7213.05 | AP10: 7127.95 | AQ10: 7191.9 | AR10: 7278.05 | AS10: 6844.95 | AW10: 7151.9
A11: 8 | B11: 7257.85 | E11: -7257.85 | F11: -7257.85 | G11: 0 | H11: 7222 | K11: -7222 | L11: -7222 | M11: 0 | N11: 7137.55 | Q11: -7137.55 | R11: -7137.55 | S11: 0 | T11: 7193.3 | W11: -7193.3 | X11: =V11-T11 -> -7193.3 | Y11: =U11-V11 -> 0 | Z11: 7258.75 | AC11: -7258.75 | AD11: -7258.75 | AE11: 0 | AF11: 6858 | AI11: -6858 | AJ11: -6858 | AK11: 0 | AN11: 7257.85 | AO11: 7222 | AP11: 7137.55 | AQ11: 7193.3 | AR11: 7258.75 | AS11: 6888 | AW11: 7153.3
A12: 9 | B12: 7130 | E12: -7130 | F12: -7130 | G12: 0 | H12: 7095 | K12: -7095 | L12: -7095 | M12: 0 | N12: 7014.65 | Q12: -7014.65 | R12: -7014.65 | S12: 0 | T12: 7109.6 | W12: -7109.6 | X12: -7109.6 | Y12: 0 | AF12: 6727.2 | AI12: -6727.2 | AJ12: -6727.2 | AK12: 0 | AN12: 7130 | AO12: =(((((((((AVERAGE(AM12:AN12))-20)-20)-5)+20)+30)-25)-5)-5)-5 -> 7095 | AP12: 7014.65 | AQ12: 7109.6 | AS12: 6757.2 | AW12: 7109.6
A13: 10 | B13: 6953.2 | E13: -6953.2 | F13: -6953.2 | G13: 0 | H13: 6928.2 | K13: -6928.2 | L13: -6928.2 | M13: 0 | N13: 6850.1 | Q13: -6850.1 | R13: -6850.1 | S13: 0 | T13: 6959.85 | W13: -6959.85 | X13: -6959.85 | Y13: 0 | AF13: 6676.6 | AI13: -6676.6 | AJ13: -6676.6 | AK13: 0 | AN13: 6953.2 | AO13: =(((((((AVERAGE(AM13:AN13))-20)-20)-5)+20)+30)-25)-5 -> 6928.2 | AP13: 6850.1 | AQ13: 6959.85 | AS13: 6706.6 | AW13: 6959.85
A14: 11 | B14: 6839.3 | E14: -6839.3 | F14: -6839.3 | G14: 0 | H14: 6819.3 | K14: -6819.3 | L14: -6819.3 | M14: 0 | N14: 6780.3 | Q14: -6780.3 | R14: -6780.3 | S14: 0 | T14: 6852.65 | W14: -6852.65 | X14: -6852.65 | Y14: 0 | AF14: 6645.35 | AI14: -6645.35 | AJ14: -6645.35 | AK14: 0 | AN14: 6839.3 | AO14: =((((((AVERAGE(AM14:AN14))-20)-20)-5)+20)+30)-25 -> 6819.3 | AP14: 6780.3 | AQ14: 6852.65 | AS14: 6675.35 | AW14: 6867.65
A15: 12 | B15: 6576.3 | E15: -6576.3 | F15: -6576.3 | G15: 0 | N15: 6626.95 | Q15: -6626.95 | R15: -6626.95 | S15: 0 | T15: 6764.9 | W15: -6764.9 | X15: -6764.9 | Y15: 0 | AF15: 6730.6 | AI15: -6730.6 | AJ15: -6730.6 | AK15: 0 | AN15: 6576.3 | AP15: 6626.95 | AQ15: 6764.9 | AS15: 6760.6 | AW15: 6779.9
A16: 13 | B16: 6540.05 | E16: -6540.05 | F16: -6540.05 | G16: 0 | N16: 6632 | Q16: -6632 | R16: -6632 | S16: 0 | T16: 6751 | W16: -6751 | X16: -6751 | Y16: 0 | AN16: 6540.05 | AP16: 6632 | AQ16: 6751 | AW16: 6762.7
D18: RIGHT | H18: LEFT | M18: OFFSET
C19: A | D19: X | E19: X | F19: X | G19: X | H19: X | I19: X | J19: AS+ | K19: 30 | M19: 0
C20: B | D20: X | E20: X | F20: X | G20: X | H20: X | I20: X | J20: AS | K20: 22
C21: C | D21: X | E21: X | F21: X | G21: X | H21: X | I21: X | J21: DL | K21: 15
S22: TRIM LEFT SIDE | V22: TRIM RIGHT SIDE
Q23: SECTION | S23: 3 | T23: 2 | U23: 1 | V23: 1 | W23: 2 | X23: 3
Q24: A average | S24: 0 | T24: 0 | U24: 0 | V24: 0 | W24: 0 | X24: 0
Q25: B average | S25: 0 | T25: 0 | U25: 0 | V25: 0 | W25: 0 | X25: 0
Q26: FINAL TRIM | S26: =S24-S25 -> 0 | T26: =T24-T25 -> 0 | U26: 0 | V26: 0 | W26: 0 | X26: =X24-X25 -> 0
